bitfinex/quotes_ETHUSD_20260119
["timestamp","ask_amount","ask_price","bid_price","bid_amount"]
[1768831281824,0.00044653,3218.7,3218.4,0.94347068]
[1768831292646,0.00044653,3218.7,3218.4,0.00080144]
[1768831293337,0.00044653,3218.7,3218.4,0.96776251]
[1768831297671,0.79878095,3218.7,3218.4,0.00080144]
[1768831297971,0.79878095,3218.7,3218.0,0.96696107]
[1768831298158,0.79833442,3218.4,3218.0,0.96696107]
[1768831298360,1.31133442,3218.4,3218.0,0.96696107]
[1768831301057,0.513,3218.5,3218.1,0.99596988]
[1768831302553,0.513,3218.5,3218.4,0.001]
[1768831305306,1.31132134,3218.5,3218.0,0.99596988]
[1768831306685,0.513,3218.5,3218.0,0.99596988]
[1768831310580,0.513,3218.5,3218.1,0.99596988]
[1768831314601,0.513,3218.5,3218.4,0.002]
[1768831315591,0.513,3218.5,3218.1,0.99596988]
[1768831317202,1.3113025,3218.5,3218.1,0.99596988]
[1768831317408,0.7983025,3218.4,3218.0,0.002]
[1768831320712,0.7983025,3218.4,3218.0,0.95965839]
[1768831321014,0.7983025,3218.4,3217.7,3.10780848]
[1768831321015,0.79909845,3218.3,3217.8,0.95765839]
[1768831322032,5.79550128,3218.1,3217.6,0.95765839]
[1768831322191,0.79829597,3218.0,3217.5,0.00080128]
[1768831322518,0.79829597,3218.0,3217.5,0.95845967]
[1768831323404,0.79829471,3218.0,3217.5,0.95845967]
[1768831325484,0.79829224,3217.9,3217.5,0.00080128]
[1768831326511,0.79829224,3217.9,3217.8,0.001]
[1768831326713,0.79829224,3217.9,3217.5,0.00080128]
[1768831328011,0.79829224,3217.9,3217.5,0.95845967]
[1768831328814,0.79829224,3217.9,3217.0,3.11046327]
[1768831328815,0.95527934,3217.5,3217.0,0.002]
[1768831329012,0.95527934,3217.5,3216.9,0.95845991]
[1768831329013,5.79550128,3217.3,3216.9,0.95845991]
[1768831329215,0.95527934,3217.2,3216.7,0.95965839]
[1768831329584,0.95527934,3216.9,3216.3,0.95965839]
[1768831330115,0.95527934,3216.6,3216.2,0.00280104]
[1768831331601,0.95527934,3216.6,3216.0,0.002]
[1768831331802,0.95608038,3216.6,3216.0,0.002]
[1768831332204,0.95527934,3216.5,3216.0,0.002]
[1768831333388,0.95527934,3216.3,3215.7,0.002]
[1768831333621,0.95527934,3216.2,3215.7,0.002]
[1768831334423,0.95527934,3216.1,3215.7,0.002]
[1768831334726,0.95527934,3216.0,3215.7,0.002]
[1768831335095,0.95527934,3216.0,3215.2,0.84093302]
[1768831335399,0.95527934,3215.8,3215.2,0.32893302]
[1768831335921,0.95527934,3215.8,3215.0,0.32893194]
[1768831336221,0.95527934,3215.7,3215.0,0.7240687]
[1768831336423,0.95527934,3215.7,3215.0,0.32893194]
[1768831338524,4.06511887,3215.6,3215.5,0.001]
[1768831338697,0.95527934,3215.5,3214.3,0.32892876]
[1768831338895,0.95527934,3215.3,3214.4,0.32892876]
[1768831339724,0.95527934,3215.3,3214.5,0.32892772]
[1768831340213,0.95527934,3215.3,3214.3,3.43994716]
[1768831340435,0.95527934,3215.1,3214.4,0.32892772]
[1768831341736,3.10967177,3215.8,3214.4,0.32892772]
[1768831341737,0.95527934,3215.6,3214.5,5.79550128]
[1768831341919,3.10931003,3216.2,3215.2,0.32892569]
[1768831341920,0.95527934,3216.1,3215.2,0.32892569]
[1768831342235,0.9560815,3216.3,3215.2,0.32892569]
[1768831342427,0.9560815,3216.3,3215.5,0.32892569]
[1768831342730,0.513,3216.2,3215.5,0.32892569]
[1768831342952,0.513,3216.2,3215.7,0.3289237]
[1768831343111,1.4690815,3216.3,3215.7,0.3289237]
[1768831343518,0.95652861,3216.2,3215.7,0.32892272]
[1768831343747,0.51380216,3216.3,3215.7,0.32892272]
[1768831344156,1.47033077,3216.3,3215.7,0.32892272]
[1768831344649,1.47033077,3216.3,3215.8,0.32892175]
[1768831347939,4.57950728,3216.3,3215.8,0.32892175]
[1768831348141,0.95652861,3216.2,3215.5,0.32891892]
[1768831349635,1.46952861,3216.2,3215.5,0.32891892]
[1768831349833,0.001,3216.0,3215.5,0.32891892]
[1768831350034,0.001,3216.0,3215.7,0.32891708]
[1768831353352,0.95652861,3216.8,3215.9,0.32891441]
[1768831353557,3.10809902,3218.3,3215.9,0.32891441]
[1768831353558,0.95733021,3217.0,3216.4,0.32891354]
[1768831353720,0.95733021,3217.0,3216.2,0.00080112]
[1768831353721,0.95652861,3217.4,3216.7,0.32891354]
[1768831353914,0.513,3217.5,3216.8,0.32891354]
[1768831354328,0.513,3217.5,3217.0,0.32891354]
[1768831354550,0.0008016,3217.6,3217.1,0.32891268]
[1768831354730,0.00080128,3217.9,3217.4,0.32811108]
[1768831355055,0.95652861,3218.0,3217.5,0.00080136]
[1768831355251,0.95652861,3217.9,3217.5,0.00080136]
[1768831357655,3.10735425,3218.2,3217.5,0.00080136]
[1768831357656,0.95652861,3218.2,3217.5,0.32891075]
[1768831358256,0.0008012,3218.3,3217.5,0.32891075]
[1768831358552,1.47032981,3218.3,3217.7,0.32810855]
[1768831358858,0.95732981,3218.3,3217.7,0.32810855]
[1768831359950,1.47032981,3218.3,3217.7,0.32810855]
[1768831361263,1.47032981,3218.3,3217.5,3.43688759]
[1768831361264,0.92330244,3218.2,3217.5,3.43688759]
[1768831361556,0.92330244,3218.2,3217.8,0.001]
[1768831361945,0.002,3217.9,3217.8,0.001]
[1768831363070,0.002,3217.9,3217.5,0.00080136]
[1768831363071,0.92330244,3217.8,3217.5,0.00080136]
[1768831363628,0.92330244,3217.7,3217.5,0.00080136]
[1768831363824,0.92330244,3217.6,3217.5,0.00080136]
[1768831364572,1.43630244,3217.8,3217.5,0.00080136]
[1768831364776,0.513,3217.8,3217.5,0.00080136]
[1768831364934,0.002,3217.9,3217.5,0.00080136]
[1768831364935,0.002,3217.9,3217.7,0.32910224]
[1768831365349,0.002,3217.9,3217.6,3.10790651]
[1768831365672,0.92330244,3218.1,3217.6,0.32910149]
[1768831365844,0.0008012,3218.3,3217.8,0.32910149]
[1768831366230,0.513,3218.6,3217.8,0.32910149]
[1768831366428,0.513,3218.6,3218.1,0.01670932]
[1768831366628,0.92374897,3218.7,3218.1,0.01670932]
[1768831366853,0.513,3218.6,3218.1,0.34581007]
[1768831367026,0.513,3218.6,3218.1,3.45317718]
[1768831369061,1.43630244,3218.6,3218.2,0.32909929]
[1768831369458,1.43630244,3218.6,3218.1,0.01670932]
[1768831369660,0.92330244,3218.6,3218.1,0.34580789]
[1768831369844,1.43630244,3218.6,3218.1,3.45321795]
[1768831370044,1.43630244,3218.6,3218.1,0.34580789]
[1768831370269,1.43630244,3218.6,3218.1,3.45316331]
[1768831371871,1.43630244,3218.6,3218.2,0.32909717]
[1768831373248,0.92330244,3218.6,3218.2,0.32909717]
[1768831374239,0.93307364,3218.5,3218.1,0.01670932]
[1768831374444,0.93507364,3218.3,3218.1,0.01670932]
[1768831376836,0.93507364,3218.3,3217.9,0.00080128]
[1768831377069,0.93307364,3218.2,3217.8,0.001]
[1768831377373,0.93307364,3218.0,3217.8,0.001]
[1768831380970,0.93307364,3218.0,3217.5,0.00080136]
[1768831380971,0.93307364,3217.9,3217.5,0.00080136]
[1768831381288,0.93307364,3217.9,3217.2,3.45568572]
[1768831381289,0.93307364,3217.9,3217.2,0.00080168]
[1768831381483,0.933875,3217.9,3217.2,0.00080168]
[1768831381693,0.93307364,3217.7,3217.2,0.00080168]
[1768831382920,0.93307364,3217.6,3217.2,0.00080168]
[1768831383482,0.93307364,3217.6,3216.9,0.34840158]
[1768831383483,0.93307364,3217.5,3216.9,0.0008016]
[1768831384190,3.10808815,3217.5,3216.9,0.0008016]
[1768831384392,0.93307364,3217.4,3216.9,0.0008016]
[1768831384700,0.93307364,3217.2,3216.9,0.0008016]
[1768831384898,0.93307364,3217.1,3216.9,0.0008016]
[1768831387593,0.513,3217.3,3216.9,0.34839921]
[1768831387781,0.00080168,3217.6,3216.9,0.34839921]
[1768831387984,0.513,3217.5,3216.9,0.34839921]
[1768831388796,1.44607364,3217.5,3216.9,0.34839921]
[1768831389286,1.44607364,3217.5,3217.0,0.34759647]
[1768831391377,0.93307364,3217.4,3217.0,0.34759647]
[1768831391967,0.93307364,3217.4,3216.9,0.3483964]
[1768831392205,0.93307364,3217.4,3216.9,0.0008016]
[1768831393192,0.93307364,3217.3,3216.9,0.0008016]
[1768831395386,0.93307364,3217.3,3216.9,0.34839479]
[1768831398401,0.93307364,3217.3,3217.2,0.002]
[1768831399311,0.93307364,3217.3,3216.9,0.0028016]
[1768831399799,0.93307364,3217.2,3216.9,0.0028016]
[1768831400375,0.93307364,3217.2,3216.6,0.00080168]
[1768831400376,0.93307364,3217.1,3216.6,0.00080168]
[1768831404515,0.93307364,3217.1,3216.6,0.3531915]
[1768831405224,0.5138016,3217.3,3216.8,0.93427731]
[1768831405225,0.0008016,3217.3,3216.8,0.93427731]
[1768831405712,0.513,3217.5,3217.0,0.93427731]
[1768831406093,1.50697583,3217.5,3217.0,0.93427731]
[1768831406298,0.99397583,3217.4,3216.9,0.00080168]
[1768831406478,0.99397583,3217.4,3216.6,0.00080168]
[1768831406479,0.99397583,3217.2,3216.6,0.00080168]
[1768831407311,0.99397583,3217.0,3216.6,0.00080168]
[1768831411012,0.99397583,3216.9,3216.6,0.00080168]
[1768831411419,0.99497583,3216.9,3216.6,0.00080168]
[1768831417255,0.99397583,3216.8,3216.6,0.00080168]
[1768831417544,0.99397583,3216.8,3216.2,0.00080112]
[1768831417545,0.99397583,3216.6,3216.2,0.00080112]
[1768831418200,0.99397583,3216.6,3216.2,0.93507843]
[1768831418433,0.99397583,3216.6,3216.2,0.00080112]
[1768831420136,0.96313535,3216.5,3216.2,0.00080112]
[1768831421241,0.96313535,3216.4,3216.2,0.00080112]
[1768831423622,0.96313535,3216.3,3216.2,0.00080112]
[1768831424996,0.00080112,3216.6,3215.9,0.94657293]
[1768831425208,0.00080112,3216.6,3216.0,0.94577069]
[1768831425209,0.513,3216.5,3216.0,0.94577069]
[1768831425710,1.47613535,3216.5,3216.0,0.94577069]
[1768831429757,0.96313535,3216.4,3216.0,0.94577069]
[1768831430111,0.96313535,3216.4,3215.9,0.00080224]
[1768831430513,0.96313535,3216.3,3215.9,0.00080224]
[1768831430722,0.96313535,3216.2,3215.9,0.00080224]
[1768831433839,0.95037245,3216.1,3215.9,0.00080224]
[1768831435130,0.95037245,3216.0,3215.6,0.002]
[1768831437346,0.95037245,3215.9,3215.6,0.002]
[1768831438847,0.513,3216.1,3215.6,0.002]
[1768831439027,1.46337245,3216.1,3215.6,0.002]
[1768831440041,0.95037245,3216.0,3215.6,0.002]
[1768831440240,0.00080224,3216.3,3215.6,0.96935173]
[1768831440468,0.513,3216.2,3215.6,0.96935173]
[1768831441549,0.00080224,3216.3,3215.6,0.96935173]
[1768831441726,0.00080224,3216.3,3215.7,0.96735173]
[1768831441933,0.00080112,3216.6,3215.9,0.96815405]
[1768831444360,0.95117357,3216.6,3216.0,0.96735173]
[1768831445358,0.00080112,3216.6,3216.0,0.96735173]
[1768831445655,0.00080112,3216.6,3216.2,0.96735173]
[1768831446560,0.00080112,3216.6,3216.3,0.96735173]
[1768831448061,1.46337245,3216.8,3216.4,0.96735173]
[1768831448062,0.513,3216.8,3216.4,0.96735173]
[1768831448359,1.46437245,3216.9,3216.4,0.96735173]
[1768831448531,0.95037245,3216.8,3216.4,0.96735173]
[1768831449362,0.95037245,3216.8,3216.2,0.96815293]
[1768831450265,0.95037245,3216.8,3216.2,0.0008012]
[1768831450463,0.95037245,3216.6,3216.2,0.0008012]
[1768831452472,0.95037245,3216.4,3216.2,0.0008012]
[1768831455258,0.95037245,3216.6,3216.2,0.0008012]
[1768831456277,0.95037245,3216.6,3216.2,0.96815293]
[1768831456979,0.001,3216.9,3216.2,0.96815293]
[1768831457145,0.001,3216.9,3216.3,0.96735173]
[1768831457146,0.513,3216.7,3216.3,0.96735173]
[1768831457475,0.95037245,3216.6,3216.2,0.0008012]
[1768831458639,0.95037245,3216.5,3216.2,0.0008012]
[1768831458841,0.001,3216.3,3216.2,0.0008012]
[1768831464494,0.513,3216.7,3216.3,0.95084079]
[1768831465611,1.44343215,3216.7,3216.2,0.40855782]
[1768831465897,1.44343215,3216.7,3216.2,0.95164199]
[1768831466758,0.93043215,3216.6,3216.2,0.0008012]
[1768831466963,0.93043215,3216.6,3216.2,3.11004786]
[1768831467261,0.513,3216.6,3216.3,0.95084079]
[1768831468004,0.001,3216.9,3216.6,1.02482012]
[1768831468198,0.514,3216.9,3216.6,1.02482012]
[1768831468616,1.44443215,3216.9,3216.6,0.07397933]
[1768831468816,1.44443215,3216.9,3216.2,0.0008012]
[1768831468817,0.93043215,3216.8,3216.2,0.0008012]
[1768831470294,9.42540713,3216.9,3216.5,0.002]
[1768831470295,0.93043215,3216.7,3216.5,0.002]
[1768831470519,0.93043215,3216.6,3216.5,0.002]
[1768831474100,3.10887272,3216.6,3216.2,0.0008012]
[1768831474317,0.93043215,3216.4,3216.2,0.0008012]
[1768831476976,4.03953467,3216.4,3216.2,0.0008012]
[1768831477309,0.93043215,3216.3,3216.2,0.0008012]
[1768831478811,4.03959485,3216.3,3216.2,0.0008012]
[1768831479008,1.69659004,3216.3,3216.2,0.0008012]
[1768831482896,0.93043215,3216.3,3216.2,0.0008012]
[1768831483827,0.513,3216.3,3216.2,0.90215193]
[1768831484132,0.513,3216.4,3216.2,0.90215193]
[1768831484335,0.513,3216.4,3216.2,0.0008012]
[1768831487311,3.10881696,3216.7,3216.2,0.90215193]
[1768831487516,0.513,3216.6,3216.2,0.90215193]
[1768831488928,4.76307034,3216.7,3216.2,0.90215193]
[1768831489091,0.71569731,3216.7,3216.2,0.90215193]
[1768831489300,0.513,3216.6,3216.2,0.90215193]
[1768831489605,4.56043244,3216.6,3216.2,0.0008012]
[1768831489935,3.62187637,3216.6,3216.2,0.0008012]
[1768831490136,0.93855607,3216.5,3216.2,0.0008012]
[1768831498411,0.513,3216.6,3216.2,0.0008012]
[1768831498617,1.41656624,3216.6,3216.2,0.0008012]
[1768831500146,4.97798654,3216.6,3216.2,0.0008012]
[1768831502123,0.96553805,3216.6,3216.2,0.96353162]
[1768831502454,0.513,3216.6,3216.2,0.96353162]
[1768831504151,0.513,3216.7,3216.3,0.96273042]
[1768831504727,1.41656624,3216.7,3216.3,0.96273042]
[1768831505558,1.41656624,3216.7,3216.5,0.002]
[1768831505760,0.513,3216.7,3216.5,0.002]
[1768831507020,0.001,3216.9,3216.5,0.96473042]
[1768831507319,0.513,3216.7,3216.5,0.96473042]
[1768831509050,0.513,3216.7,3216.5,0.002]
[1768831510957,0.90456624,3216.9,3216.5,0.002]
[1768831511121,0.513,3216.8,3216.5,0.002]
[1768831511450,0.513,3216.7,3216.5,0.002]
[1768831511768,0.90356624,3216.6,3216.5,0.002]
[1768831515283,0.90356624,3216.6,3216.2,0.0008012]
[1768831517240,0.90356624,3216.6,3216.5,0.002]
[1768831517443,1.35610557,3216.6,3216.5,0.002]
[1768831523778,0.93419323,3216.5,3216.2,0.0008012]
[1768831524578,1.38673256,3216.6,3216.2,0.0008012]
[1768831525182,1.38673256,3216.6,3216.2,0.97447652]
[1768831525476,0.45253933,3216.6,3216.2,0.97447652]
[1768831525645,1.44719323,3216.7,3216.2,0.97447652]
[1768831526651,0.513,3216.6,3216.2,0.97447652]
[1768831529069,0.513,3216.6,3216.5,0.002]
[1768831531390,0.513,3216.6,3216.5,0.97567532]
[1768831531795,0.513,3216.6,3216.5,0.002]
[1768831534682,1.44719323,3216.6,3216.5,0.002]
[1768831535899,0.0012994,3216.5,3216.2,0.0008012]
[1768831540418,0.513,3216.4,3216.2,0.0008012]
[1768831541716,1.42170467,3216.4,3216.2,0.0008012]
[1768831542217,0.90870467,3216.3,3216.1,0.002]
[1768831543005,4.01787003,3216.3,3216.1,0.002]
[1768831543202,0.90870467,3216.2,3215.9,0.00080232]
[1768831545422,0.76398869,3216.3,3215.9,0.00080232]
[1768831545586,0.513,3216.1,3215.9,0.96709576]
[1768831545979,1.42170467,3216.1,3215.9,0.00080232]
[1768831546215,0.90870467,3216.0,3215.5,0.96629344]
[1768831547702,0.90870467,3215.9,3215.3,0.002]
[1768831548198,0.90870467,3215.9,3215.3,0.96829344]
[1768831548391,0.90870467,3215.9,3215.3,0.002]
[1768831548596,0.90870467,3215.8,3215.3,0.002]
[1768831548793,0.90870467,3215.8,3214.9,3.11246849]
[1768831548794,0.90870467,3215.6,3215.0,0.96629344]
[1768831549009,1.42170467,3215.7,3215.0,0.96629344]
[1768831550090,0.90870467,3215.6,3215.0,0.96629344]
[1768831551026,0.90870467,3215.6,3215.1,0.96629344]
[1768831551201,0.513,3215.7,3215.1,0.96629344]
[1768831551399,1.42170467,3215.7,3215.1,0.96629344]
[1768831551725,0.90870467,3215.6,3215.0,0.96629344]
[1768831552092,0.90870467,3215.6,3215.3,0.002]
[1768831552303,1.42170467,3215.7,3215.3,0.002]
[1768831552525,0.90870467,3215.6,3215.3,0.002]
[1768831555582,0.90870467,3215.6,3215.1,0.96629344]
[1768831556398,0.90870467,3215.6,3215.1,0.97518407]
[1768831557344,0.513,3215.5,3215.2,0.97518407]
[1768831558337,0.96326582,3215.9,3215.2,0.97518407]
[1768831558500,0.513,3215.6,3215.2,0.97518407]
[1768831559000,0.96326582,3215.9,3215.2,0.97518407]
[1768831559200,0.513,3215.8,3215.3,0.97518407]
[1768831559423,0.513,3215.8,3215.2,0.76068702]
[1768831559424,0.96326582,3215.7,3215.1,1.38414232]
[1768831560533,0.96326582,3215.7,3215.0,0.002]
[1768831561035,0.96326582,3215.7,3215.0,0.97718407]
[1768831561601,0.96326582,3215.6,3215.0,0.97718407]
[1768831564417,0.96326582,3215.5,3215.0,0.002]
[1768831564623,1.47626582,3215.4,3215.3,0.002]
[1768831564838,1.47626582,3215.4,3215.0,0.002]
[1768831565048,1.47726582,3215.4,3215.0,0.002]
[1768831565254,0.96326582,3215.3,3215.0,0.002]
[1768831566462,0.96326582,3215.3,3213.8,0.00080216]
[1768831566658,3.1101388,3215.3,3214.5,3.11083612]
[1768831566954,0.96326582,3215.2,3214.7,0.97518407]
[1768831567157,1.47726582,3215.4,3214.8,0.97518407]
[1768831567325,0.514,3215.4,3214.8,0.97518407]
[1768831568361,0.514,3215.4,3214.9,0.97518407]
[1768831570456,0.513,3215.3,3214.9,0.97518407]
[1768831571950,1.47626582,3215.3,3214.6,3.11078673]
[1768831572165,1.47626582,3215.3,3214.7,0.97518407]
[1768831572360,1.47626582,3215.3,3214.8,0.97518407]
[1768831574076,0.513,3215.3,3214.9,0.97518407]
[1768831574767,0.001,3215.4,3215.0,0.97518407]
[1768831574938,0.514,3215.4,3215.0,0.97518407]
[1768831575138,0.001,3215.4,3215.0,0.97518407]
[1768831575452,0.514,3215.4,3215.0,0.97518407]
[1768831575677,0.001,3215.4,3215.0,0.97518407]
[1768831575866,0.514,3215.4,3215.0,0.97518407]
[1768831577376,0.001,3215.2,3215.0,0.97518407]
[1768831577588,0.001,3215.4,3215.1,0.97518407]
[1768831577746,0.96326582,3215.8,3215.2,0.97518407]
[1768831577747,0.513,3215.5,3215.2,0.97518407]
[1768831578851,0.96326582,3215.4,3214.8,0.97518407]
[1768831579649,0.96326582,3215.3,3214.8,0.97518407]
[1768831580052,0.96326582,3215.3,3214.6,0.97518407]
[1768831581283,0.96326582,3215.3,3214.1,0.97518407]
[1768831581284,0.96326582,3215.0,3214.1,0.97518407]
[1768831581589,0.96326582,3215.0,3214.4,0.97518407]
[1768831581812,0.96326582,3215.0,3214.2,0.97518407]
[1768831581813,0.96326582,3214.7,3214.2,0.97518407]
[1768831582081,0.96326582,3214.7,3213.9,3.11142255]
[1768831582082,0.96326582,3214.6,3213.9,0.97518407]
[1768831582582,0.96326582,3214.6,3214.0,0.97518407]
[1768831582886,0.72832986,3215.0,3214.0,0.97518407]
[1768831582887,0.513,3214.7,3214.3,0.99491178]
[1768831585618,0.513,3214.9,3214.4,0.99491178]
[1768831586608,0.99371693,3214.8,3214.2,0.99491178]
[1768831586751,6.32003275,3214.9,3213.9,0.99491178]
[1768831586752,0.99371693,3214.6,3213.9,0.99491178]
[1768831587381,3.1108141,3214.6,3213.9,0.99491178]
[1768831587585,0.99371693,3214.5,3213.9,0.99491178]
[1768831587790,0.99371693,3214.5,3213.8,0.00080216]
[1768831588011,3.11082125,3214.6,3213.8,0.00080216]
[1768831588012,0.99371693,3214.3,3213.8,0.00080216]
[1768831589073,0.99371693,3214.3,3213.7,0.00080216]
[1768831589269,0.99371693,3214.0,3213.7,0.00080216]
[1768831589490,0.513,3213.9,3213.7,0.00080216]
[1768831589794,3.11205598,3214.2,3213.7,0.00080216]
[1768831589795,1.50671693,3214.1,3213.7,0.00080216]
[1768831590293,1.96859036,3214.1,3213.7,0.00080216]
[1768831590460,1.96859036,3214.1,3213.7,0.99571394]
[1768831590461,0.513,3214.0,3213.7,0.99571394]
[1768831591089,0.513,3214.0,3213.7,0.00080216]
[1768831591754,0.513,3214.0,3213.7,0.99571394]
[1768831592354,0.513,3214.0,3213.7,0.00080216]
[1768831592566,1.50671693,3214.0,3213.7,0.00080216]
[1768831594059,0.99371693,3213.9,3213.7,0.00080216]
[1768831594301,0.99371693,3213.8,3213.7,0.00080216]
[1768831594669,1.50671693,3214.0,3213.7,0.00080216]
[1768831595869,1.50671693,3214.0,3213.5,0.9957137]
[1768831595870,0.99371693,3214.1,3213.5,0.9957137]
[1768831596198,0.513,3214.0,3213.5,0.9957137]
[1768831596762,1.50671693,3214.0,3213.5,0.9957137]
[1768831597586,0.99371693,3213.9,3213.5,0.9957137]
[1768831598104,0.99371693,3213.8,3213.3,0.4962137]
[1768831598804,0.99371693,3213.8,3213.2,0.00080184]
[1768831599401,0.99371693,3213.7,3213.2,0.00080184]
[1768831599609,0.99371693,3213.7,3212.8,0.00080024]
[1768831599822,0.99371693,3213.7,3212.6,0.002]
[1768831599823,0.94327738,3213.1,3212.6,0.002]
[1768831600029,2.13138842,3213.0,3212.6,0.002]
[1768831600174,1.45627738,3213.0,3212.6,0.002]
[1768831600371,0.94327738,3212.9,3212.6,0.002]
[1768831601328,0.94327738,3212.9,3212.2,0.00080112]
[1768831601329,0.94407842,3212.9,3212.2,0.00080112]
[1768831601479,0.513,3212.8,3212.2,0.00080112]
[1768831601677,0.94327738,3212.7,3212.2,0.00080112]
[1768831602031,0.94327738,3212.5,3212.0,0.002]
[1768831602199,0.94327738,3212.5,3212.0,0.98765806]
[1768831602397,0.513,3212.4,3212.0,4.10094862]
[1768831602712,0.513,3212.5,3212.1,0.98565806]
[1768831603090,1.45627738,3212.5,3212.0,0.98765806]
[1768831603414,0.94327738,3212.4,3212.0,0.002]
[1768831603817,0.94327738,3212.4,3211.5,0.98645822]
[1768831603818,0.94407754,3212.3,3211.5,0.98645822]
[1768831603975,0.94327738,3212.1,3211.5,0.98645822]
[1768831604178,0.00080016,3212.3,3211.5,0.98645822]
[1768831604179,0.94407754,3212.3,3211.6,0.98565806]
[1768831604375,0.514,3212.2,3211.6,0.98565806]
[1768831604783,0.00080016,3212.3,3211.6,0.98565806]
[1768831605509,0.94407754,3212.3,3211.6,0.98565806]
[1768831605884,0.00080016,3212.3,3211.7,0.98565806]
[1768831606089,0.00080016,3212.3,3211.6,6.22734588]
[1768831606090,0.00080016,3212.3,3211.9,0.98565806]
[1768831606290,0.00080016,3212.3,3211.7,0.98565806]
[1768831606291,0.94407754,3212.3,3211.7,0.98565806]
[1768831606607,0.94407754,3212.3,3211.5,0.98645822]
[1768831606800,0.94407754,3212.3,3211.5,3.11454797]
[1768831607003,0.94407754,3212.3,3211.6,4.09934768]
[1768831607203,0.514,3212.2,3211.6,4.09934768]
[1768831607416,0.94327738,3212.1,3211.6,4.09934768]
[1768831607626,0.00080016,3212.3,3211.7,0.98565806]
[1768831607812,0.51480016,3212.3,3211.9,0.98565806]
[1768831608186,0.00080016,3212.3,3211.9,0.98565806]
[1768831608740,0.00080112,3212.6,3211.9,0.9864583]
[1768831609549,0.9440785,3212.6,3211.9,0.9864583]
[1768831609845,0.51480104,3212.9,3211.9,0.9864583]
[1768831609846,0.00080104,3212.9,3212.3,0.98565806]
[1768831610010,0.94327738,3212.8,3212.3,0.98565806]
[1768831610822,0.94327738,3212.8,3212.2,7.21272162]
[1768831611540,0.94327738,3212.8,3212.2,4.09959044]
[1768831612640,0.00080104,3212.9,3212.3,0.98565806]
[1768831612809,0.90496631,3212.9,3212.3,0.98565806]
[1768831613847,0.90496631,3212.9,3212.4,4.02095918]
[1768831614345,0.00080104,3212.9,3212.5,0.90802182]
[1768831615522,0.90496631,3212.9,3212.3,0.90802182]
[1768831616223,0.90496631,3212.9,3212.3,4.02103069]
[1768831617149,0.00080104,3212.9,3212.4,0.90802182]
[1768831618223,0.00080104,3212.9,3212.5,3.11284046]
[1768831618424,0.00080104,3212.9,3212.6,0.90802182]
[1768831618624,0.00080104,3212.9,3212.2,0.0028012]
[1768831618625,0.90416527,3212.8,3212.2,4.02392734]
[1768831618825,0.90416527,3212.8,3212.4,3.11291773]
[1768831619955,0.90416527,3212.8,3212.4,4.02093955]
[1768831620137,0.00080104,3212.9,3212.5,0.90802182]
[1768831620538,0.90496631,3212.9,3212.3,0.90802182]
[1768831621475,0.90496631,3212.9,3212.4,3.11285597]
[1768831621668,0.90496631,3212.9,3212.5,0.90802182]
[1768831622772,0.90416527,3212.8,3212.2,3.11586045]
[1768831622971,0.90416527,3212.8,3212.2,0.0028012]
[1768831624603,0.90416527,3212.6,3212.2,0.0028012]
[1768831624803,0.90416527,3212.4,3212.2,0.0028012]
[1768831625564,0.90416527,3212.4,3212.2,0.00195316]
[1768831625772,0.72351111,3212.4,3212.2,0.00195316]
[1768831625983,0.514,3212.4,3212.2,0.00195316]
[1768831626261,1.41816527,3212.3,3211.9,0.00280024]
[1768831626793,1.41816527,3212.3,3211.5,0.00080016]
[1768831626794,0.90416527,3212.1,3211.5,0.00080016]
[1768831627468,0.90416527,3212.1,3211.9,0.002]
[1768831627794,0.51480024,3212.3,3211.9,0.91002182]
[1768831628402,0.00080024,3212.3,3211.9,0.91002182]
[1768831628801,0.00080024,3212.3,3212.0,3.11332503]
[1768831629005,0.0008012,3212.6,3212.2,0.90802182]
[1768831629304,0.00080104,3212.9,3212.3,0.90802182]
[1768831630002,0.90416527,3213.1,3212.6,0.90802182]
[1768831630404,1.41896551,3213.2,3212.6,0.90802182]
[1768831630588,0.90416527,3213.1,3212.6,0.90802182]
[1768831630987,0.90416527,3213.1,3212.6,4.0207234]
[1768831631775,0.90416527,3213.1,3212.7,0.90802182]
[1768831631977,0.51480184,3213.6,3212.8,0.90882214]
[1768831632178,0.00080184,3213.6,3212.8,0.90882214]
[1768831632578,0.00080192,3213.9,3213.2,0.00080192]
[1768831632822,0.00080192,3213.9,3213.3,0.90802182]
[1768831632999,0.00080192,3213.9,3213.4,0.90802182]
[1768831633895,0.90496719,3213.9,3213.2,0.90882374]
[1768831634121,1.35720227,3213.8,3213.2,0.90882374]
[1768831634918,0.90416527,3213.5,3212.8,0.00080032]
[1768831635111,1.41816527,3213.4,3212.8,0.00080032]
[1768831635320,1.41816527,3213.4,3212.8,0.90882214]
[1768831636523,0.90416527,3213.3,3212.8,0.00080032]
[1768831637715,0.45301669,3213.2,3212.8,0.00080032]
[1768831637957,0.90416527,3213.1,3212.5,0.90882294]
[1768831638239,0.90416527,3213.1,3212.5,0.00080112]
[1768831638807,0.90516527,3213.1,3212.5,0.00080112]
[1768831639422,0.90516527,3213.1,3212.5,0.90882294]
[1768831639652,0.90516527,3213.1,3212.5,0.00080112]
[1768831640453,0.90416527,3213.0,3212.2,0.00080128]
[1768831640740,6.22552504,3213.1,3211.9,0.00280032]
[1768831640741,0.90416527,3212.5,3211.9,0.00280032]
[1768831640939,0.00080128,3212.6,3211.9,0.00280032]
[1768831640940,0.90416527,3212.3,3211.9,0.00280032]
[1768831641742,0.00080016,3211.9,3211.3,0.90802182]
[1768831641914,0.513,3211.8,3211.4,0.90802182]
[1768831642113,0.00080016,3211.9,3211.5,0.90802182]
[1768831642313,0.51380016,3211.9,3211.5,0.90802182]
[1768831643133,0.51380016,3211.9,3211.3,0.98672575]
[1768831643334,1.41961156,3211.9,3211.3,0.98672575]
[1768831643530,0.51380016,3211.9,3211.4,0.98672575]
[1768831644458,3.62724206,3211.9,3211.4,0.98672575]
[1768831644612,4.39187205,3211.9,3211.4,0.98672575]
[1768831644813,2.18424155,3211.9,3211.4,0.98672575]
[1768831645015,2.18424155,3211.9,3209.9,3.11534863]
[1768831645016,0.00080112,3211.0,3209.6,3.11564095]
[1768831645212,0.00080112,3211.0,3208.3,0.00177607]
[1768831645213,0.00080112,3211.0,3209.3,3.11974556]
[1768831645214,0.9058114,3210.1,3209.3,3.11974556]
[1768831645417,0.00080112,3210.6,3209.9,0.98672575]
[1768831645610,0.00080112,3210.6,3210.1,0.98672575]
[1768831645844,0.90661252,3211.0,3210.2,0.0008012]
[1768831646149,0.00080112,3211.0,3210.2,0.98672575]
[1768831646322,0.00080176,3211.3,3210.3,0.98672575]
[1768831646645,0.00080176,3211.3,3210.6,0.98752695]